Cogmind - Beta 16 --- EXPLORER MODE // 2025.12.24 @ 11:58:47 Player: K.K.Y. Result: Destroyed by PA-B1H(R) with Subdweller Laser Performance ------------- Evolutions (0) 0 Regions Visited (3) 600 Robots Destroyed (32) 160 Value Destroyed (628) 628 Prototype IDs (6) 120 Alien Tech Used (0) 0 Bonus (30) 30 TOTAL SCORE: 1538 Bonus ------- Follower Combat Kills 30 Cogmind --------- Core Integrity 0/250 Matter 168/300 Energy 80/100 System Corruption 0% Temperature Cool (24) Movement Treading (160) Location -10/Subcaves Parts ------- > --- POWER (1) -------- (None) > --- PROPULSION (2) --- Light Treads > --- UTILITY (3) ------ Medium Storage Unit > --- WEAPON (2) ------- Shock Rifle Minigun > --- INVENTORY (10) --- Flight Unit Cesium-ion Thruster Improved Heat Sink Small Storage Unit Large Storage Unit Peak State ------------ > --- POWER ------------ Ion Engine > --- PROPULSION ------- Light Treads > --- UTILITY ---------- Medium Storage Unit > --- WEAPON ----------- Shock Rifle Minigun > --- INVENTORY -------- Flight Unit Cesium-ion Thruster Improved Heat Sink Small Storage Unit Large Storage Unit [Rating: 9] Favorites ----------- Power Ion Engine Engine Ion Engine Propulsion Light Treads Treads Light Treads Utility Medium Storage Unit Storage Medium Storage Unit Weapon Light Cannon Energy Gun Shock Rifle Ballistic Gun Light Assault Rifle Ballistic Cannon Light Cannon Special Weapon Mining Laser Build | -11 -10 -10 -10 ------- Run | Yrd Mat Min Sub Slots Evolved 1 | . 1 . . Power . | . . . . Propulsion . | . . . . Utility 1 | . 1 . . Weapon . | . . . . Parts Attached 14 | 6 3 2 3 Power 2 | 1 . 1 . Engine 2 | 1 . 1 . Core . | . . . . Reactor . | . . . . Propulsion 3 | 2 . 1 . Treads 3 | 2 . 1 . Leg . | . . . . Wheel . | . . . . Hover . | . . . . Flight . | . . . . Utility 1 | 1 . . . Device . | . . . . Storage 1 | 1 . . . Processor . | . . . . Hackware . | . . . . Protection . | . . . . Artifact . | . . . . Weapon 8 | 2 3 . 3 Energy Gun 1 | . . . 1 Energy Cannon . | . . . . Ballistic Gun 3 | 2 . . 1 Ballistic Cannon 3 | . 3 . . Launcher . | . . . . Special Weapon 1 | . . . 1 Impact Weapon . | . . . . Slashing Weapon . | . . . . Piercing Weapon . | . . . . Special Melee Weapon . | . . . . Unidentified Prototypes . | . . . . Parts Lost 6 | . 1 . 5 Power 1 | . . . 1 Propulsion 1 | . . . 1 Utility . | . . . . Weapon 4 | . 1 . 3 Highest Loss Streak 4 | . 1 . 4 To Critical Strikes . | . . . . Average Backups 5 | . 3 6 7 Power . | . . . . Propulsion 1 | . . 1 2 Utility 2 | . 2 3 3 Weapon 2 | . 1 2 2 Tool/Special . | . . . . Unused Backups 8 | . 3 . 5 Power . | . . . . Propulsion 3 | . 1 . 2 Utility 3 | . . . 3 Weapon 2 | . 2 . . Tool/Special . | . . . . Average Slot Usage (%) 71 | . 67 75 72 Engine 11 | . 11 12 11 Treads 24 | . 23 25 23 Storage 12 | . 12 12 12 Ballistic Gun 1 | . 4 . . Ballistic Cannon 18 | . 14 25 14 Special Weapon 2 | . . . 8 Peak Build Rating 9 | 6 6 7 9 Average Rating 6 | 4 5 6 6 On Entrance 4 | . 6 6 7 Avg Prop Armor Cover (%) . | . . . . Naked Turns . | . . . . Heaviest Build 21 | 17 21 21 21 Greatest Support 40 | 40 40 40 40 Greatest Overweight (x) 3 | . 3 . . Average Overweight (x) . | . . . . Largest Inventory Capacity 10 | 10 10 10 10 Average Capacity 9 | 9 10 10 10 Most Carried 9 | 5 9 9 8 Average Carried 5 | . 3 6 7 Final Capacity 10 | 10 10 10 10 Final Carried 8 | 1 4 8 5 Class Distribution -------------------- 100% | Hacker-Mutant Dominant Class ---------------- Hacker-Mutant | -10/Materials Hacker-Mutant | -10/Mines Hacker-Mutant | -10/Subcaves Resources | -11 -10 -10 -10 ----------- Run | Yrd Mat Min Sub Matter Collected 786 | 175 426 69 116 Remotely . | . . . . Salvage Created 780 | 71 542 108 59 Parts 55 | 4 43 6 2 Haulers Intercepted 1 | . 1 . . Recyclers Shooed 1 | 1 . . . Parts Field Recycled . | . . . . Retrieved Matter . | . . . . Parts Self-Destructed . | . . . . Prevented . | . . . . Parts Restored . | . . . . Kills | -11 -10 -10 -10 ------- Run | Yrd Mat Min Sub Combat Hostiles Destroyed 22 | . 14 5 3 Guns 4 | . 2 . 2 Cannons 18 | . 12 5 1 Classes Destroyed 8 | 2 6 . . Worker 1 | . 1 . . Tunneler 1 | 1 . . . Hauler 1 | . 1 . . Recycler 4 | 1 3 . . Watcher 3 | . 3 . . Swarmer 12 | . 10 2 . Grunt 5 | . 2 3 . Subdweller 5 | . 2 . 3 Best Kill Streak 5 | 2 5 2 2 Combat Bots Only 2 | . 2 2 2 Max Kills in Single Turn 1 | 1 1 1 1 Gunslinging . | . . . . Exploded . | . . . . Melee . | . . . . Uniques/NPCs Destroyed . | . . . . Combat | -11 -10 -10 -10 -------- Run | Yrd Mat Min Sub Hostile Shots Fired 140 | . 67 25 48 Missed 36 | . 20 6 10 Hits 104 | . 47 19 38 Projectile 104 | . 47 19 38 AOE 2 | . . . 2 Critical Strikes 4 | . 2 1 1 Damage Taken 1194 | . 403 129 662 Core 258 | . 75 12 171 Absorbed by Shields . | . . . . Ignored by Resistances 703 | . 257 84 362 Core Remaining (%) 100 | 100 . . . Volleys Fired 95 | 4 49 9 33 Largest 2 | 2 2 2 2 Hottest 100 | 40 60 60 100 Shots Fired 164 | 8 86 18 52 Gun 39 | 8 26 . 5 Cannon 123 | . 60 18 45 Launcher . | . . . . Special 2 | . . . 2 Kinetic 160 | 8 86 18 48 Thermal 2 | . . . 2 Explosive . | . . . . Electromagnetic 2 | . . . 2 Robot Hit Streak 19 | 4 12 4 19 Robot Miss Streak 3 | 1 3 2 . Penetration Max . | . . . . Secondary Targets 1 | . . . 1 Max Gunslinging Chain 1 | . . . 1 Shots Hit Robots 94 | 6 59 11 18 Core Hits 47 | 4 32 6 5 Critical Kills . | . . . . Critical Parts Destroyed . | . . . . Critical Strikes 4 | . 2 1 1 Blast 4 | . 2 1 1 Melee Attacks . | . . . . Impact . | . . . . Slashing . | . . . . Piercing . | . . . . Sneak Attacks . | . . . . Combat Hostiles . | . . . . Follow-up Attacks . | . . . . Damage Inflicted 1484 | 46 912 213 313 Guns 266 | 46 139 . 81 Cannons 1194 | . 773 213 208 Explosions . | . . . . Melee . | . . . . Ramming . | . . . . Kinetic 1431 | 46 912 213 260 Thermal 24 | . . . 24 Explosive . | . . . . Electromagnetic 29 | . . . 29 Impact . | . . . . Slashing . | . . . . Piercing . | . . . . Highest Corruption . | . . . . Average Corruption . | . . . . Corruption Purged . | . . . . Corruption Blocked . | . . . . Overload Shots . | . . . . Overflow Damage . | . . . . Projectiles . | . . . . Explosions . | . . . . Melee . | . . . . Knockbacks 14 | . 9 2 3 Impact . | . . . . Kinetic 14 | . 9 2 3 Secondary . | . . . . Self-Inflicted Damage . | . . . . Shots . | . . . . Rammed . | . . . . Targets Rammed . | . . . . Kicked . | . . . . Crushed . | . . . . Highest Temperature 66 | . 33 66 9 Average Temperature 19 | . 14 30 6 Received Heat Transfer 441 | . 99 99 243 Siege Activations . | . . . . Martial Activations . | . . . . Shielding Activations . | . . . . Robots Disrupted . | . . . . Combat Hostiles . | . . . . Robots Corrupted . | . . . . Combat Hostiles . | . . . . Parts Fried . | . . . . Impact Corruptions . | . . . . Robots Melted . | . . . . Combat Hostiles . | . . . . Parts Melted . | . . . . Heat Transferred 50 | . . . 50 Parts Sabotaged . | . . . . Parts Stolen . | . . . . Parts Stripped . | . . . . Power Chain Reactions . | . . . . Alert | -11 -10 -10 -10 ------- Run | Yrd Mat Min Sub Maximum Alert Level . | . . . . Low Security (%) 100 | 100 100 100 . Level 1 . | . . . . Level 2 . | . . . . Level 3 . | . . . . Level 4 . | . . . . Level 5 . | . . . . High Security . | . . . . Max Security . | . . . . Peak Influence 75 | 10 75 50 . Initial . | . . . . Average 6 | . 10 2 . Influence Increases 534 | 10 390 134 . Destroy 0b10 Robot/C 340 | . 240 100 . Destroy 0b10 Robot/NC 50 | 10 40 . . Destroy Leader 98 | . 68 30 . Successful Hack 33 | . 33 . . Disable Machine 12 | . 8 4 . Destroy Structure 1 | . 1 . . Influence Decreases 534 | 10 390 134 . Time Decay 524 | 10 380 134 . Lost Part 10 | . 10 . . Squads Dispatched 1 | . . 1 . Investigation 1 | . . 1 . Extermination . | . . . . Reinforcement . | . . . . Assault . | . . . . Garrison . | . . . . Intercept . | . . . . Searches Triggered . | . . . . Construction Impeded . | . . . . Haulers Reinforced . | . . . . Active Scanning Responses . | . . . . Cargo Convoy Interrupts . | . . . . Stealth | -11 -10 -10 -10 --------- Run | Yrd Mat Min Sub Distress Signals 1 | . 1 . . Communications Jammed . | . . . . Distress Signals . | . . . . Times Spotted 32 | . 20 6 6 Peak Tracking Total 5 | . 3 2 5 Tactical Retreats 1 | . 1 . . Traps | -11 -10 -10 -10 ------- Run | Yrd Mat Min Sub Traps Triggered 5 | . 4 . 1 Indirectly . | . . . . Trap Hack Attempts . | . . . . Triggered . | . . . . Disarmed . | . . . . Reprogrammed . | . . . . Reused . | . . . . Traps Extracted . | . . . . Installed . | . . . . Triggered . | . . . . Machines | -11 -10 -10 -10 ---------- Run | Yrd Mat Min Sub Machines Disabled 3 | . 2 1 . Max in Single Turn 1 | . 1 1 . Machines Repaired . | . . . . Machines Dismantled . | . . . . Machines Sabotaged . | . . . . Overloaded Fab Kills . | . . . . Hacking | -11 -10 -10 -10 --------- Run | Yrd Mat Min Sub Machines Accessed 6 | . 5 1 . Terminals 4 | . 4 . . Fabricators . | . . . . Repair Stations . | . . . . Recycling Units 1 | . 1 . . Scanalyzers . | . . . . Garrison Access . | . . . . Total Hacks 14 | . 13 1 . Successful 10 | . 9 1 . Failed 4 | . 4 . . Catastrophic 1 | . 1 . . Database Lockouts . | . . . . Manual 10 | . 10 . . Terminals 12 | . 12 . . Fabricators . | . . . . Repair Stations . | . . . . Recycling Units 1 | . 1 . . Scanalyzers . | . . . . Garrison Access . | . . . . Terminal Hacks 6 | . 5 1 . Robot Analysis 1 | . 1 . . Prototype ID Bank 4 | . 4 . . Open Door 1 | . . 1 . Fabricator Hacks . | . . . . Repair Station Hacks . | . . . . Recycling Unit Hacks 1 | . 1 . . Retrieve Components 1 | . 1 . . Scanalyzer . | . . . . Garrison Access Hacks . | . . . . Unauthorized Hacks 3 | . 3 . . Terminals 3 | . 3 . . Botnet 3 | . 3 . . Fabricators . | . . . . Repair Stations . | . . . . Recycling Units . | . . . . Scanalyzers . | . . . . Garrison Access . | . . . . Data Cores Recovered . | . . . . Used . | . . . . Hacking Detections 4 | . 4 . . Full Trace Events . | . . . . Feedback Events . | . . . . Feedback Blocked . | . . . . Robot Schematics Acquired . | . . . . Robots Built . | . . . . Authchips . | . . . . Time . | . . . . Total Robot Build Rating . | . . . . Part Schematics Acquired . | . . . . Parts Built . | . . . . Authchips . | . . . . Time . | . . . . Total Part Build Rating . | . . . . Part Studies Acquired . | . . . . Parts Repaired . | . . . . Time . | . . . . Parts Recycled . | . . . . Recycled Matter . | . . . . Retrieved Matter . | . . . . Retrieved Components 10 | . 10 . . Parts Scanalyzed . | . . . . Part Schematics Acquired . | . . . . Parts Damaged . | . . . . Bothacking | -11 -10 -10 -10 ------------ Run | Yrd Mat Min Sub Used RIF Installer . | . . . . Robots Hacked . | . . . . Non-combat . | . . . . Combat . | . . . . Robot Hacks Applied . | . . . . Relay Couplers Released . | . . . . Fabnet Peak Effective % . | . . . . Robots Rewired . | . . . . Allies Hacked . | . . . . Hacks Repelled . | . . . . Allies | -11 -10 -10 -10 -------- Run | Yrd Mat Min Sub Total Allies 5 | . . 5 . Largest Group 5 | . . 5 5 Highest-Rated Group 82 | . . 82 82 Highest-Rated Ally 31 | . . 31 31 Total Orders . | . . . . Ally Attacks 14 | . . . 14 Total Damage 232 | . . . 232 Kills 1 | . . . 1 Allies Corrupted . | . . . . Allies Melted . | . . . . Intel | -11 -10 -10 -10 ------- Run | Yrd Mat Min Sub Active Infowar (turns) . | . . . . Robot Analysis Total 1 | . 1 . . Derelict Logs Recovered . | . . . . Drone Launches . | . . . . Drone Recoveries . | . . . . Exploration | -11 -10 -10 -10 ------------- Run | Yrd Mat Min Sub Turns Passed 3711 | 119 1203 1352 1037 Spaces Moved 1675 | 75 644 783 173 Core 52 | 32 20 . . Treads 1623 | 43 624 783 173 Legs . | . . . . Wheels . | . . . . Hover . | . . . . Flight . | . . . . Fastest Speed 50 | 50 160 160 160 Average Speed 158 | 113 161 160 160 Slowest Speed 200 | 160 200 160 160 Overloaded Moves . | . . . . Propulsion Burnouts . | . . . . Robots Hopped . | . . . . Potential Cave-ins . | . . . . Cave-ins Triggered . | . . . . Exploration Rate (%) 52 | 5 91 99 13 Regions Visited 3 Branch Regions 2 Pre-discovered Areas . | . . . . Known Exits Taken 3 | 1 1 1 . Unknown Exits Taken . | . . . . Scrap Searched . | . . . . Spaces Dug . | . . . . Terrain Destroyed . | . . . . Melee . | . . . . Projectile . | . . . . AOE . | . . . . Terrain Rammed . | . . . . Walls Destroyed . | . . . . Machines Disabled . | . . . . Actions | -11 -10 -10 -10 --------- Run | Yrd Mat Min Sub Total 2573 | 102 731 864 876 Wait 749 | 12 8 63 666 Move 1672 | 74 643 782 173 Hop . | . . . . Pick Up 27 | 6 15 6 . Fast Attach 1 | 1 . . . Attach 17 | 5 9 . 3 Detach 2 | . 2 . . Swap 3 | . . 2 1 Drop 7 | . 5 2 . Fire 95 | 4 49 9 33 Melee . | . . . . Ram . | . . . . Kick . | . . . . Crush . | . . . . Escape Stasis . | . . . . Rewire . | . . . . Trap . | . . . . Miscellaneous . | . . . . Route ------- -11/Scrapyard -10/Materials (discovered 5 exits: *Mat x3 / *Min x2) -10/Mines (discovered 4 exits: *Mat x2 / *Exi / *Sub) -10/Subcaves History --------- Turn | Location | Event 3 | -11/Scrapyard | Identified exit to Materials 3 | -11/Scrapyard | Discovered exit to Materials (range 16) 120 | -11/Scrapyard | Entered Materials 120 | -10/Materials | Evolved 1 slot: Utility x1 327 | -10/Materials | Build established: Hacker-Mutant 534 | -10/Materials | Identified exit to Materials 534 | -10/Materials | Discovered exit to Materials (range 16) 660 | -10/Materials | Discovered exit to Materials (range 8) 788 | -10/Materials | Identified exit to Mines 788 | -10/Materials | Discovered exit to Mines (range 16) 820 | -10/Materials | Derelicts attacked the area 897 | -10/Materials | Discovered exit to Materials (range 7) 1089 | -10/Materials | Discovered exit to Mines (range 5) 1323 | -10/Materials | Entered Mines 1341 | -10/Mines | Deemed a non-threat by the Exiles lab entrance 1341 | -10/Mines | Identified exit to Exiles 1341 | -10/Mines | Discovered exit to Exiles (range 5) 1386 | -10/Mines | Identified exit to Subcaves 1386 | -10/Mines | Discovered exit to Subcaves (range 13) 1766 | -10/Mines | Discovered exit to Materials (range 9) 1784 | -10/Mines | Met a Derelict shopkeep closing up shop 2003 | -10/Mines | Discovered exit to Materials (range 6) 2011 | -10/Mines | Assisted by bots powering up and referring to "LRC-V3" 2675 | -10/Mines | Entered Subcaves 2675 | -10/Subcaves | Accompanied by 5 allies 2676 | -10/Subcaves | Approached by a straggling Scientist 2680 | -10/Subcaves | Led the pair of lost Derelicts to an unsafe place 2694 | -10/Subcaves | A swath of the cavern ceiling suddenly collapsed 3669 | -10/Subcaves | Core integrity fell below 50% 3698 | -10/Subcaves | Core integrity fell below 20% 3712 | -10/Subcaves | Destroyed by PA-B1H(R) with Subdweller Laser Last Messages --------------- 03588_ Triggered Piercing Trap. 03588_ Spikes shoot up from the floor. 03588_ Critical hit (Impale). 03588_ Lgt. Treads destroyed. 03668_ Trooper 1b destroyed. 03670_ Acquired 37 matter. 03670_ Trooper 1a destroyed. 03672_ 8N-V8L(R) destroyed. 03676_ Acquired 8 matter. 03677_ Mining Laser destroyed. 03679_ GV-H8Y(R) knocked back. 03687_ GV-H8Y(R) Sub. Power Source blasted off. 03689_ GV-H8Y(R) knocked back. 03697_ Destroyed Scrap Shield. 03702_ Lgt. Cannon destroyed. 03705_ GV-H8Y(R) destroyed. 03706_ Lgt. Cannon destroyed. 03709_ Ion Engine destroyed. 03711_ PM-4KS(R) destroyed. 03711_ Switching to secondary target: PA-B1H(R). Map ----- +----------------------------------------------------+ | ???????????????????????????????????????????????? | | ???????????????????????????????????????????????? | | ???????????????????????????????????????????????? | | ???????????????????????????????????????????????? | | ???????????????????????????????????????????????? | | ???????????????????????????????????????????????? | | ???????????????????????????????????????????????? | | ???????????????????????????????????????????????? | | ???????????????????????????????????????????????? | | ???????????????????????????????????????????????? | | ???????????????????????????????????????????????? | | ???????????????????????????????????????????????? | | ???????????????? ??????????????????????????????? | | ????????????????? ?????????????????????????????? | | ????????????????? ?????????????????????????????? | | ?????????????????# ????????????????????????????? | | ?????????????????# ????????????????????????????? | | ?????????????????? ???????????????????????????? | | ?????????????????? ??????????####?????????????? | | ???????????????#??? ?####?### #?????????????? | | ??????????????## ???*##% ## #????##?###?### | | ??????????????# ??#%!& ??????# ## ### | | ??????????????## ##&%*% ?????????# | | ??????????????# R #??????????# # | | ???????????????# ;;#??????????# #### | | ???????????????????# @& ####???????# "#??## | | ??????????????????## % ;## ###????## "##???# | | ??????????????????# ; ###??# ""##???# | | ??????????????????##; % # ##### ###?? | | ???????????????????# ## ## #?? | | ???????????????????# ###### " # | | ???????????????????# R ;#????#" """ # | | ???????????????????#### ## #????# ""#"" | | ??????????????????????# ? #????#####" | | ??????????????????????# ? ????????# " | | ?????????????????????# ##?? #??????? " | | ?????????????????????# #??? #??????? " | | ????????????????????? #??? ??????? " " | | ????????????????????# ????? ??????? """ ## | | ????????????????????## #?????##??????"########? | | ?????????????????????###???????????????????????? | | ???????????????????????????????????????????????? | | ???????????????????????????????????????????????? | | ???????????????????????????????????????????????? | | ???????????????????????????????????????????????? | | ???????????????????????????????????????????????? | | ???????????????????????????????????????????????? | | ???????????????????????????????????????????????? | | ???????????????????????????????????????????????? | | ???????????????????????????????????????????????? | +----------------------------------------------------+ Best States ------------- Heat Dissipation 25 Energy Generation 10 Energy Capacity 250 Matter Stores 300 Matter Capacity 300 Sight Range 16 Terrain Scan Density 10 Resistance: KI 35 Resistance: TH 35 Resistance: EX 35 Resistance: EM 35 Resistance: I 35 Resistance: S 35 Resistance: P 35 Evasion (%) 50 Recoil Reduction 2 Offensive Hacking 20 Item Schematics ----------------- None Robot Schematics ------------------ None Fabricated ------------ Nothing Repaired ---------- Nothing Studied --------- None Alien Tech Used ----------------- None Achievements -------------- None Challenges ------------ None Game ------ Seed LayeredLaunchBlade Manual? 0 Play Time 00:15:24 Cumulative 223.6 hours Start 2025.12.24 @ 11:46:10 End 2025.12.24 @ 11:58:47 Sessions 1 Manual Loads 0 Difficulty Explorer Special Mode None Game No. 340 Rogue 0 Adventurer 0 Explorer 340 Win Type - Total 0 Types 0/0/0/0/0/0/0/0/0/0 Lore% 71 Gallery% 68 Achievement% 53 Wizard Run 0 Options --------- Layout 1 ASCII 0 Keyboard 0 Movement Mouse Keybinds 0 Fullscreen 1 Font 24/Smallcaps Map View 50x35 Zoom Use 0% Tactical HUD 1 Map Filters NONE Filters NONE Steam 1 RUN: cd6160c7-2ed8-481d-a547-5db4e52c535a